[Event "XVI Memorial Lezcano Montalvo 2024"]
[Site "Gran Canaria"]
[Date "2024.03.25"]
[Round "3.17"]
[White "Estremera Panos, Sergio"]
[Black "Perez Celis, Alba"]
[Result "1-0"]
[ECO "A06"]
[WhiteElo "2233"]
[BlackElo "1854"]
[Annotator "RC"]
[PlyCount "81"]
[EventDate "2024.03.23"]
[EventType "swiss"]
[EventCountry "ESP"]
[SourceTitle "playchess.com"]
[Source "ChessBase"]
[SourceQuality "1"]
[TimeControl "5400+30"]

1. d4 {[%emt 0:00:04]} d5 {[%emt 0:05:55]} 2. c4 {[%emt 0:00:10]} c6 {[%emt 0:00:18]} 3. Nf3 {[%emt 0:00:15]} Nf6 {[%emt 0:00:21]} 4. e3 {[%emt 0:00:10]} e6 {[%emt 0:00:49]} 5. b3 {[%emt 0:00:28]} Nbd7 {[%emt 0:01:56]} 6. Bd3 {[%emt 0:00:36]} Bd6 {[%emt 0:02:05]} 7. Bb2 {[%emt 0:00:10]} O-O {[%emt 0:00:51]} 8. Nbd2 {[%emt 0:01:06]} Re8 {[%emt 0:04:11]} 9. Ne5 {[%emt 0:01:09]} Qc7 {[%emt 0:09:05]} 10. f4 {[%emt 0:01:33]} b6 {[%emt 0:04:06]} 11. O-O {[%emt 0:04:49]} Bb7 {[%emt 0:06:37]} 12. Rc1 {[%emt 0:05:46]} Rac8 {[%emt 0:05:58]} 13. Qf3 {[%emt 0:03:27]} Nf8 {[%emt 0:04:46]} 14. c5 {[%emt 0:02:22]} Be7 {[%emt 0:00:50]} 15. b4 {[%emt 0:08:28]} a6 {[%emt 0:14:45]} 16. Nb3 {[%emt 0:01:59]} Ng6 {[%emt 0:01:31]} 17. g3 {[%emt 0:03:31]} Bf8 {[%emt 0:02:41]} 18. cxb6 {[%emt 0:03:28]} Qxb6 {[%emt 0:00:45]} 19. a3 {[%emt 0:00:13]} Ne4 {[%emt 0:06:35]} 20. Nd7 {[%emt 0:05:28]} Qc7 {[%emt 0:03:02]} 21. Ndc5 {[%emt 0:00:08]} f5 {[%emt 0:02:17]} 22. Qe2 {[%emt 0:00:43]} Bxc5 {[%emt 0:10:16]} 23. Nxc5 {[%emt 0:02:11]} Ra8 {[%emt 0:03:23]} 24. Nb3 {[%emt 0:01:03]} Qe7 {[%emt 0:02:54]} 25. Rc2 {[%emt 0:00:24]} Nf8 {[%emt 0:01:10]} 26. Rfc1 {[%emt 0:00:46]} Nd7 {[%emt 0:00:36]} 27. Na5 {[%emt 0:00:28]} Nb8 {[%emt 0:00:49]} 28. Bc3 {[%emt 0:06:44]} Rf8 {[%emt 0:02:16]} 29. Be1 {[%emt 0:00:21]} Rf7 {[%emt 0:00:17]} 30. Kh1 {[%emt 0:02:57]} g5 {[%emt 0:00:35]} 31. Qh5 {[%emt 0:05:03]} g4 {[%emt 0:00:32]} 32. Bxe4 {[%emt 0:00:33]} dxe4 {[%emt 0:00:22]} 33. h3 {[%emt 0:00:16]} Rg7 {[%emt 0:01:29]} 34. Nxb7 {[%emt 0:00:32]} Rg6 {[%emt 0:00:14]} 35. Nc5 {[%emt 0:01:35]} Qf8 {[%emt 0:00:25]} 36. Rh2 {[%emt 0:00:53]} Rh6 {[%emt 0:02:43]} 37. Qg5+ {[%emt 0:00:08]} Rg6 {[%emt 0:00:05]} 38. Nxe6 {[%emt 0:00:15]} Qc8 {[%emt 0:00:52]} 39. Qd8+ {[%emt 0:00:08]} Qxd8 {[%emt 0:00:43]} 40. Nxd8 {[%emt 0:00:02]} Ra7 {[%emt 0:00:17]} 41. hxg4 {[%emt 0:01:02]} 1-0

[Event "XVI Memorial Lezcano Montalvo 2024"]
[Site "Gran Canaria"]
[Date "2024.03.25"]
[Round "3.18"]
[White "Ramos Santana, Marcelino"]
[Black "Tytynnik, Artem"]
[Result "0-1"]
[ECO "B23"]
[WhiteElo "1897"]
[BlackElo "2197"]
[Annotator "RC"]
[PlyCount "106"]
[EventDate "2024.03.23"]
[EventType "swiss"]
[EventCountry "ESP"]
[SourceTitle "playchess.com"]
[Source "ChessBase"]
[SourceQuality "1"]
[TimeControl "5400+30"]

1. e4 {[%emt 0:13:18]} c5 {[%emt 0:00:25]} 2. Nc3 {[%emt 0:00:16]} d6 {[%emt 0:00:30]} 3. f4 {[%emt 0:00:25]} Nc6 {[%emt 0:00:23]} 4. Nf3 {[%emt 0:00:26]} g6 {[%emt 0:00:21]} 5. Bb5 {[%emt 0:00:15]} Bd7 {[%emt 0:00:22]} 6. O-O {[%emt 0:00:42]} Bg7 {[%emt 0:00:17]} 7. d3 {[%emt 0:00:18]} Nd4 {[%emt 0:02:40]} 8. Bxd7+ {[%emt 0:05:48]} Qxd7 {[%emt 0:00:04]} 9. Be3 {[%emt 0:01:33]} Nxf3+ {[%emt 0:02:52]} 10. Qxf3 {[%emt 0:00:36]} Nf6 {[%emt 0:01:10]} 11. h3 {[%emt 0:01:24]} Qc6 {[%emt 0:05:09]} 12. a4 {[%emt 0:07:24]} O-O {[%emt 0:01:43]} 13. Rae1 {[%emt 0:02:52]} e6 {[%emt 0:05:54]} 14. g4 {[%emt 0:05:31]} d5 {[%emt 0:02:01]} 15. e5 {[%emt 0:00:40]} Nd7 {[%emt 0:00:20]} 16. d4 {[%emt 0:10:08]} f6 {[%emt 0:04:59]} 17. Qe2 {[%emt 0:02:37]} fxe5 {[%emt 0:03:19]} 18. fxe5 {[%emt 0:00:20]} cxd4 {[%emt 0:03:12]} 19. Bxd4 {[%emt 0:00:17]} a6 {[%emt 0:00:34]} 20. b3 {[%emt 0:05:32]} Qc7 {[%emt 0:03:16]} 21. Qe3 {[%emt 0:03:06]} Rxf1+ {[%emt 0:02:02]} 22. Kxf1 {[%emt 0:00:03]} b5 {[%emt 0:04:03]} 23. Re2 {[%emt 0:02:58]} b4 {[%emt 0:04:20]} 24. Na2 {[%emt 0:01:08]} a5 {[%emt 0:00:46]} 25. Nc1 {[%emt 0:00:05]} Rf8+ {[%emt 0:06:24]} 26. Kg2 {[%emt 0:00:14]} Nb8 {[%emt 0:05:03]} 27. Bc5 {[%emt 0:10:13]} Rc8 {[%emt 0:02:23]} 28. Bd6 {[%emt 0:00:14]} Qb7 {[%emt 0:00:39]} 29. Nd3 {[%emt 0:02:27]} Nc6 {[%emt 0:14:45]} 30. Kg3 {[%emt 0:00:39]} Nd8 {[%emt 0:02:56]} 31. h4 {[%emt 0:05:33]} Nf7 {[%emt 0:01:32]} 32. Bc5 {[%emt 0:01:05]} Rc6 {[%emt 0:05:37]} 33. Bd4 {[%emt 0:00:51]} Qc7 {[%emt 0:00:53]} 34. Qf2 {[%emt 0:03:47]} Qc8 {[%emt 0:01:15]} 35. Kh3 {[%emt 0:00:39]} Nd8 {[%emt 0:02:36]} 36. Kg3 {[%emt 0:01:06]} Rc7 {[%emt 0:02:12]} 37. Bb6 {[%emt 0:01:32]} Rf7 {[%emt 0:00:25]} 38. Qc5 {[%emt 0:00:10]} Nc6 {[%emt 0:02:28]} 39. Bxa5 {[%emt 0:02:05]} Bf8 {[%emt 0:04:53]} 40. Qb6 {[%emt 0:02:34]} Ra7 {[%emt 0:03:20]} 41. Nxb4 {[%emt 0:02:34]} Bxb4 {[%emt 0:00:44]} 42. Bxb4 {[%emt 0:01:03]} Rb7 {[%emt 0:00:12]} 43. Qc5 {[%emt 0:00:51]} Rxb4 {[%emt 0:00:10]} 44. Rf2 {[%emt 0:00:29]} Re4 {[%emt 0:02:14]} 45. a5 {[%emt 0:00:21]} h5 {[%emt 0:00:53]} 46. g5 {[%emt 0:01:48]} Rxe5 {[%emt 0:00:20]} 47. b4 {[%emt 0:00:44]} d4 {[%emt 0:00:22]} 48. Qd6 {[%emt 0:02:18]} Rd5 {[%emt 0:00:42]} 49. Rf8+ {[%emt 0:02:42]} Qxf8 {[%emt 0:00:14]} 50. Qxe6+ {[%emt 0:00:10]} Qf7 {[%emt 0:00:08]} 51. Qxc6 {[%emt 0:00:14]} d3 {[%emt 0:00:49]} 52. Qc8+ {[%emt 0:00:20]} Kh7 {[%emt 0:00:11]} 53. Qc4 {[%emt 0:00:33]} d2 {[%emt 0:00:15]} 0-1

[Event "XVI Memorial Lezcano Montalvo 2024"]
[Site "Gran Canaria"]
[Date "2024.03.25"]
[Round "3.19"]
[White "Mendez Acosta, Alexander Jesus"]
[Black "Morales Camacho, Julian"]
[Result "1/2-1/2"]
[ECO "D26"]
[WhiteElo "2025"]
[BlackElo "2186"]
[Annotator "RC"]
[PlyCount "33"]
[EventDate "2024.03.23"]
[EventType "swiss"]
[EventCountry "ESP"]
[SourceTitle "playchess.com"]
[Source "ChessBase"]
[SourceQuality "1"]
[TimeControl "5400+30"]

1. c4 {[%emt 0:00:07]} e6 {[%emt 0:00:17]} 2. Nc3 {[%emt 0:01:19]} d5 {[%emt 0:00:13]} 3. e3 {[%emt 0:00:40]} Nf6 {[%emt 0:00:53]} 4. Nf3 {[%emt 0:00:14]} Be7 {[%emt 0:01:29]} 5. Be2 {[%emt 0:00:29]} dxc4 {[%emt 0:01:15]} 6. Bxc4 {[%emt 0:00:31]} c5 {[%emt 0:00:56]} 7. d4 {[%emt 0:05:14]} a6 {[%emt 0:00:53]} 8. dxc5 {[%emt 0:07:48]} Qxd1+ {[%emt 0:01:32]} 9. Kxd1 {[%emt 0:01:24]} Bxc5 {[%emt 0:00:35]} 10. a3 {[%emt 0:00:33]} b5 {[%emt 0:01:56]} 11. Ba2 {[%emt 0:02:21]} Bb7 {[%emt 0:02:05]} 12. b4 {[%emt 0:02:12]} Be7 {[%emt 0:01:05]} 13. Bb2 {[%emt 0:01:04]} Nbd7 {[%emt 0:01:08]} 14. Ke2 {[%emt 0:07:20]} O-O {[%emt 0:02:10]} 15. Rhd1 {[%emt 0:02:20]} Rfd8 {[%emt 0:02:08]} 16. Rac1 {[%emt 0:06:04]} Rac8 {[%emt 0:09:35]} 17. Nb1 {[%emt 0:09:23]} 1/2-1/2

[Event "XVI Memorial Lezcano Montalvo 2024"]
[Site "Gran Canaria"]
[Date "2024.03.25"]
[Round "3.20"]
[White "Bangiev, Katharina"]
[Black "Lopez Pereyra, Antonio"]
[Result "1/2-1/2"]
[ECO "C15"]
[WhiteElo "1779"]
[BlackElo "2069"]
[Annotator "RC"]
[PlyCount "61"]
[EventDate "2024.03.23"]
[EventType "swiss"]
[EventCountry "ESP"]
[SourceTitle "playchess.com"]
[Source "ChessBase"]
[SourceQuality "1"]
[TimeControl "5400+30"]

1. e4 {[%emt 0:00:08]} e6 {[%emt 0:01:49]} 2. d4 {[%emt 0:00:41]} d5 {[%emt 0:00:06]} 3. Nc3 {[%emt 0:00:14]} Bb4 {[%emt 0:00:54]} 4. Nge2 {[%emt 0:00:55]} dxe4 {[%emt 0:02:23]} 5. a3 {[%emt 0:00:11]} Bxc3+ {[%emt 0:00:10]} 6. Nxc3 {[%emt 0:00:09]} Nc6 {[%emt 0:01:46]} 7. Bb5 {[%emt 0:02:19]} Nge7 {[%emt 0:01:59]} 8. Nxe4 {[%emt 0:01:24]} O-O {[%emt 0:02:10]} 9. c3 {[%emt 0:02:33]} a6 {[%emt 0:20:45]} 10. Bd3 {[%emt 0:04:26]} f6 {[%emt 0:22:57]} 11. Qh5 {[%emt 0:13:49]} g6 {[%emt 0:03:51]} 12. Qf3 {[%emt 0:05:41]} Nf5 {[%emt 0:09:31]} 13. g4 {[%emt 0:09:10]} Nd6 {[%emt 0:02:39]} 14. Bh6 {[%emt 0:04:35]} Rf7 {[%emt 0:00:01]} 15. h4 {[%emt 0:03:35]} Nxe4 {[%emt 0:08:49]} 16. Bxe4 {[%emt 0:03:08]} Qe8 {[%emt 0:03:50]} 17. O-O-O {[%emt 0:04:34]} Na5 {[%emt 0:01:05]} 18. d5 {[%emt 0:04:13]} Qb5 {[%emt 0:07:51]} 19. dxe6 {[%emt 0:17:37]} Bxe6 {[%emt 0:00:09]} 20. Bd5 {[%emt 0:00:20]} Nc4 {[%emt 0:01:01]} 21. b4 {[%emt 0:08:59]} Bxd5 {[%emt 0:02:28]} 22. Qxd5 {[%emt 0:01:24]} Qxd5 {[%emt 0:00:07]} 23. Rxd5 {[%emt 0:00:03]} c6 {[%emt 0:00:38]} 24. Rd4 {[%emt 0:00:41]} b5 {[%emt 0:01:36]} 25. a4 {[%emt 0:01:00]} Re7 {[%emt 0:00:20]} 26. Rhd1 {[%emt 0:01:05]} Rae8 {[%emt 0:01:06]} 27. Rf4 {[%emt 0:03:03]} Re2 {[%emt 0:01:42]} 28. Rxf6 {[%emt 0:00:48]} Na3 {[%emt 0:00:28]} 29. Rd2 {[%emt 0:00:53]} Re1+ {[%emt 0:00:11]} 30. Rd1 {[%emt 0:00:20]} R1e2 {[%emt 0:00:30]} 31. Rd2 {[%emt 0:00:13]} 1/2-1/2

[Event "XVI Memorial Lezcano Montalvo 2024"]
[Site "Gran Canaria"]
[Date "2024.03.25"]
[Round "3.21"]
[White "Lorenzo Ventura, Abel"]
[Black "Perez Bolanos, David"]
[Result "0-1"]
[ECO "D00"]
[WhiteElo "1772"]
[BlackElo "2053"]
[Annotator "RC"]
[PlyCount "88"]
[EventDate "2024.03.23"]
[EventType "swiss"]
[EventCountry "ESP"]
[SourceTitle "playchess.com"]
[Source "ChessBase"]
[SourceQuality "1"]
[TimeControl "5400+30"]

1. d4 {[%emt 0:00:26]} d5 {[%emt 0:00:08]} 2. Bf4 {[%emt 0:00:15]} c5 {[%emt 0:00:09]} 3. e3 {[%emt 0:00:06]} Nc6 {[%emt 0:00:16]} 4. c3 {[%emt 0:00:45]} Bf5 {[%emt 0:00:30]} 5. Nd2 {[%emt 0:00:21]} e6 {[%emt 0:01:07]} 6. Qb3 {[%emt 0:02:05]} Qd7 {[%emt 0:02:14]} 7. Ngf3 {[%emt 0:01:22]} f6 {[%emt 0:01:23]} 8. h3 {[%emt 0:02:10]} Nge7 {[%emt 0:15:21]} 9. Be2 {[%emt 0:10:44]} Ng6 {[%emt 0:04:49]} 10. Bg3 {[%emt 0:06:15]} c4 {[%emt 0:05:05]} 11. Qa4 {[%emt 0:14:13]} a6 {[%emt 0:04:06]} 12. Bxc4 {[%emt 0:08:25]} dxc4 {[%emt 0:04:29]} 13. e4 {[%emt 0:00:01]} b5 {[%emt 0:00:55]} 14. Qc2 {[%emt 0:01:02]} Be7 {[%emt 0:03:36]} 15. exf5 {[%emt 0:01:37]} exf5 {[%emt 0:00:10]} 16. O-O {[%emt 0:01:33]} O-O {[%emt 0:00:18]} 17. Nh4 {[%emt 0:04:27]} Nxh4 {[%emt 0:01:33]} 18. Bxh4 {[%emt 0:00:02]} Bd6 {[%emt 0:04:03]} 19. f3 {[%emt 0:09:40]} Ne7 {[%emt 0:03:26]} 20. Rfe1 {[%emt 0:00:50]} Nd5 {[%emt 0:02:21]} 21. Nf1 {[%emt 0:02:53]} Nf4 {[%emt 0:05:08]} 22. Ne3 {[%emt 0:12:53]} Nd3 {[%emt 0:04:46]} 23. Re2 {[%emt 0:01:26]} Bc7 {[%emt 0:01:35]} 24. b3 {[%emt 0:06:04]} Qd6 {[%emt 0:02:38]} 25. Nf1 {[%emt 0:00:13]} Rae8 {[%emt 0:09:24]} 26. Bg3 {[%emt 0:01:24]} f4 {[%emt 0:00:19]} 27. Bf2 {[%emt 0:02:02]} f5 {[%emt 0:02:54]} 28. bxc4 {[%emt 0:01:16]} bxc4 {[%emt 0:01:28]} 29. Rd2 {[%emt 0:02:28]} Qc6 {[%emt 0:02:00]} 30. Rb1 {[%emt 0:01:45]} Rf6 {[%emt 0:00:26]} 31. Nh2 {[%emt 0:02:01]} Rg6 {[%emt 0:02:37]} 32. a4 {[%emt 0:01:01]} Ba5 {[%emt 0:01:18]} 33. Qa2 {[%emt 0:00:55]} Bxc3 {[%emt 0:02:53]} 34. Rxd3 {[%emt 0:00:17]} Ba5 {[%emt 0:00:31]} 35. d5 {[%emt 0:02:37]} Qf6 {[%emt 0:01:44]} 36. Rdd1 {[%emt 0:02:09]} Rc8 {[%emt 0:04:47]} 37. d6 {[%emt 0:00:29]} Qg5 {[%emt 0:00:40]} 38. Be1 {[%emt 0:00:35]} Bxe1 {[%emt 0:00:17]} 39. Rxe1 {[%emt 0:00:11]} Rxd6 {[%emt 0:00:05]} 40. Rbc1 {[%emt 0:00:31]} Rdc6 {[%emt 0:00:15]} 41. Rxc4 {[%emt 0:00:28]} Rxc4 {[%emt 0:00:56]} 42. Rc1 {[%emt 0:00:01]} Qe7 {[%emt 0:00:42]} 43. Rxc4 {[%emt 0:00:17]} Qe3+ {[%emt 0:00:06]} 44. Kh1 {[%emt 0:01:00]} Qe1+ {[%emt 0:00:06]} 0-1

[Event "XVI Memorial Lezcano Montalvo 2024"]
[Site "Gran Canaria"]
[Date "2024.03.25"]
[Round "3.22"]
[White "Perez Bolanos, Joel"]
[Black "Cabrera Ramos, Javier"]
[Result "1-0"]
[ECO "B15"]
[WhiteElo "2046"]
[BlackElo "1784"]
[Annotator "NA RC"]
[PlyCount "55"]
[EventDate "2024.03.23"]
[EventType "swiss"]
[EventCountry "ESP"]
[SourceTitle "playchess.com"]
[Source "ChessBase"]
[SourceQuality "1"]
[TimeControl "5400+30"]

1. e4 {[%emt 0:01:30]} g6 {[%emt 0:00:06]} 2. d4 {[%emt 1:30:00]} c6 {[%emt 0:00:06]} 3. Nc3 {[%emt 0:00:00]} d5 {[%emt 0:00:06]} 4. e5 {[%emt 0:00:00]} Bg7 {[%emt 0:00:08]} 5. Be3 {[%emt 0:00:00]} f6 {[%emt 0:00:48]} 6. f4 {[%emt 0:00:00] B15: Caro-Kann: 3 Nc3: 3...g6 and 3...dxe4 4 Nxe4 Nf6 5 Nxf6+ exf6.} Nh6 {[%emt 0:00:08]} 7. h3 {[%emt 0:00:00]} O-O {[%emt 0:04:17]} 8. Nf3 {[%emt 0:00:00]} e6 {[%emt 0:01:06]} 9. Be2 {[%emt 0:00:00]} c5 {[%emt 0:02:09]} 10. dxc5 {[%emt 0:00:00]} Nc6 {[%emt 0:00:19]} 11. O-O {[%emt 0:00:00]} Nf5 {[%emt 0:00:55]} 12. Bf2 {[%emt 0:00:00]} fxe5 {[%emt 0:00:15]} 13. fxe5 {[%emt 0:00:00]} Nxe5 {[%emt 0:00:09]} 14. Nd4 {[%emt 0:00:00]} Nxd4 {[%emt 0:02:45]} 15. Bxd4 {[%emt 0:00:00]} Rxf1+ {[%emt 0:00:08]} 16. Bxf1 {[%emt 0:00:00]} Qg5 {[%emt 0:00:53]} 17. Kh1 {[%emt 0:00:00]} Bd7 {[%emt 0:01:39]} 18. Qc1 {[%emt 0:00:00]} Qh4 {[%emt 0:00:37]} 19. Bg1 {[%emt 0:00:00] [#]} d4 $19 {[%emt 0:02:10]} 20. Ne2 {[%emt 0:00:00]} Bc6 {[%emt 0:00:20]} 21. Bxd4 {[%emt 0:00:00]} Bh6 {[%emt 0:06:55]} 22. Qe1 {[%emt 0:00:00]} Qxh3+ {[%emt 0:01:06]} 23. Kg1 {[%emt 0:00:00]} Qh5 {[%emt 0:03:16]} 24. Ng3 {[%emt 0:00:00]} Nf3+ {[%emt 0:00:15]} 25. gxf3 {[%emt 0:00:00]} Qxf3 {[%emt 0:03:41]} 26. Qxe6+ {[%emt 0:00:00]} Kf8 {[%emt 0:00:08]} 27. Qd6+ {[%emt 0:00:00]} Kg8 {[%emt 0:00:14]} 28. Bc4+ {[%emt 0:00:00]} 1-0

[Event "XVI Memorial Lezcano Montalvo 2024"]
[Site "Gran Canaria"]
[Date "2024.03.25"]
[Round "3.23"]
[White "Perez Betancor, Jose Luis"]
[Black "Lizzul Coppe, Mirko"]
[Result "1-0"]
[ECO "B22"]
[WhiteElo "1765"]
[BlackElo "2027"]
[Annotator "RC"]
[PlyCount "69"]
[EventDate "2024.03.23"]
[EventType "swiss"]
[EventCountry "ESP"]
[SourceTitle "playchess.com"]
[Source "ChessBase"]
[SourceQuality "1"]
[TimeControl "5400+30"]

1. e4 {[%emt 0:00:04]} c5 {[%emt 0:00:01]} 2. d4 {[%emt 0:00:08]} cxd4 {[%emt 0:00:04]} 3. c3 {[%emt 0:00:10]} Nf6 {[%emt 0:00:03]} 4. e5 {[%emt 0:00:16]} Nd5 {[%emt 0:00:02]} 5. cxd4 {[%emt 0:00:18]} d6 {[%emt 0:00:02]} 6. Nf3 {[%emt 0:03:12]} Nc6 {[%emt 0:00:01]} 7. Bc4 {[%emt 0:06:06]} dxe5 {[%emt 0:00:36]} 8. dxe5 {[%emt 0:01:34]} Ndb4 {[%emt 0:00:05]} 9. Qxd8+ {[%emt 0:02:42]} Nxd8 {[%emt 0:00:02]} 10. Na3 {[%emt 0:02:29]} a6 {[%emt 0:00:02]} 11. O-O {[%emt 0:00:33]} Bg4 {[%emt 0:01:57]} 12. Nd4 {[%emt 0:02:07]} e6 {[%emt 0:01:24]} 13. Be3 {[%emt 0:03:00]} Ndc6 {[%emt 0:07:19]} 14. Nxc6 {[%emt 0:01:59]} Nxc6 {[%emt 0:00:26]} 15. f4 {[%emt 0:01:19]} Bf5 {[%emt 0:06:08]} 16. Bb3 {[%emt 0:04:39]} Be7 {[%emt 0:06:10]} 17. Nc4 {[%emt 0:01:00]} O-O {[%emt 0:09:42]} 18. Bb6 {[%emt 0:01:21]} Nb4 {[%emt 0:33:39]} 19. Nd6 {[%emt 0:07:17]} Bg6 {[%emt 0:01:12]} 20. Rac1 {[%emt 0:02:16]} Bd8 {[%emt 0:07:54]} 21. Bxd8 {[%emt 0:03:27]} Raxd8 {[%emt 0:00:46]} 22. Rc7 {[%emt 0:03:16]} b5 {[%emt 0:00:09]} 23. g4 {[%emt 0:10:51]} Bd3 {[%emt 0:01:02]} 24. Rfc1 {[%emt 0:01:20]} Nd5 {[%emt 0:12:24]} 25. Bxd5 {[%emt 0:00:17]} exd5 {[%emt 0:00:02]} 26. Ra7 {[%emt 0:01:50]} f6 {[%emt 0:06:18]} 27. Rcc7 {[%emt 0:02:16]} fxe5 {[%emt 0:01:13]} 28. Rxg7+ {[%emt 0:00:42]} Kh8 {[%emt 0:00:02]} 29. f5 {[%emt 0:00:47]} Rf6 {[%emt 0:00:37]} 30. Rxh7+ {[%emt 0:01:24]} Kg8 {[%emt 0:00:02]} 31. Rag7+ {[%emt 0:03:37]} Kf8 {[%emt 0:00:01]} 32. Rc7 {[%emt 0:05:49]} Kg8 {[%emt 0:00:32]} 33. Nb7 {[%emt 0:00:27]} Re8 {[%emt 0:02:34]} 34. Nc5 {[%emt 0:00:28]} Bb1 {[%emt 0:00:26]} 35. Rcg7+ {[%emt 0:01:24]} 1-0

[Event "XVI Memorial Lezcano Montalvo 2024"]
[Site "Gran Canaria"]
[Date "2024.03.25"]
[Round "3.24"]
[White "Julien Casteleiro, Ariel"]
[Black "Sarmiento Afonso, Santiago"]
[Result "1/2-1/2"]
[ECO "A46"]
[WhiteElo "1739"]
[BlackElo "2023"]
[Annotator "RC"]
[PlyCount "101"]
[EventDate "2024.03.23"]
[EventType "swiss"]
[EventCountry "ESP"]
[SourceTitle "playchess.com"]
[Source "ChessBase"]
[SourceQuality "1"]
[TimeControl "5400+30"]

1. d4 {[%emt 0:13:46]} Nf6 {[%emt 0:00:13]} 2. Nf3 {[%emt 0:00:24]} e6 {[%emt 0:00:18]} 3. Bf4 {[%emt 0:00:22]} c5 {[%emt 0:00:58]} 4. c3 {[%emt 0:00:42]} Be7 {[%emt 0:03:17]} 5. h3 {[%emt 0:00:32]} cxd4 {[%emt 0:02:48]} 6. cxd4 {[%emt 0:00:12]} O-O {[%emt 0:06:49]} 7. Nbd2 {[%emt 0:02:14]} b6 {[%emt 0:02:23]} 8. e3 {[%emt 0:00:33]} Bb7 {[%emt 0:02:06]} 9. Bd3 {[%emt 0:00:14]} Nd5 {[%emt 0:04:00]} 10. Bg3 {[%emt 0:01:01]} f5 {[%emt 0:01:31]} 11. O-O {[%emt 0:04:30]} f4 {[%emt 0:08:44]} 12. exf4 {[%emt 0:01:39]} Nxf4 {[%emt 0:00:07]} 13. Bc2 {[%emt 0:00:19]} Nc6 {[%emt 0:04:07]} 14. a3 {[%emt 0:00:16]} Rc8 {[%emt 0:08:51]} 15. Re1 {[%emt 0:00:36]} Na5 {[%emt 0:06:02]} 16. Bb1 {[%emt 0:02:28]} Kh8 {[%emt 0:08:47]} 17. b4 {[%emt 0:02:13]} Nc6 {[%emt 0:01:25]} 18. Qc2 {[%emt 0:07:20]} g6 {[%emt 0:03:06]} 19. Qe4 {[%emt 0:04:15]} Nd5 {[%emt 0:08:30]} 20. Bd3 {[%emt 0:06:52]} Bf6 {[%emt 0:05:17]} 21. Rac1 {[%emt 0:03:06]} Nce7 {[%emt 0:03:21]} 22. Nc4 {[%emt 0:02:55]} Nxb4 {[%emt 0:01:00]} 23. Qxb7 {[%emt 0:02:28]} Nxd3 {[%emt 0:00:08]} 24. Nfe5 {[%emt 0:11:34]} Nxe1 {[%emt 0:01:28]} 25. Rxe1 {[%emt 0:01:26]} Nf5 {[%emt 0:03:06]} 26. Bh2 {[%emt 0:02:12]} d5 {[%emt 0:07:56]} 27. g4 {[%emt 0:16:17]} Nh6 {[%emt 0:02:24]} 28. Nd6 {[%emt 0:04:41]} Rc7 {[%emt 0:00:19]} 29. Qa6 {[%emt 0:07:21]} Kg8 {[%emt 0:00:18]} 30. Nb5 {[%emt 0:00:23]} Rc2 {[%emt 0:01:09]} 31. Qxa7 {[%emt 0:00:25]} Bg7 {[%emt 0:02:42]} 32. Bg3 {[%emt 0:00:35]} Nf7 {[%emt 0:00:30]} 33. Nd7 {[%emt 0:00:28]} Re8 {[%emt 0:00:16]} 34. Nxb6 {[%emt 0:00:45]} Ng5 {[%emt 0:00:26]} 35. Kg2 {[%emt 0:00:35]} Qf6 {[%emt 0:00:14]} 36. Re3 {[%emt 0:00:42]} Ne4 {[%emt 0:00:17]} 37. Rf3 {[%emt 0:00:34]} Qe7 {[%emt 0:01:31]} 38. Qa4 {[%emt 0:00:38]} Rec8 {[%emt 0:00:38]} 39. Nxc8 {[%emt 0:00:29]} Rxc8 {[%emt 0:00:05]} 40. Qa6 {[%emt 0:00:11]} Rf8 {[%emt 0:00:52]} 41. Rxf8+ {[%emt 0:00:33]} Bxf8 {[%emt 0:00:05]} 42. a4 {[%emt 0:00:17]} Nxg3 {[%emt 0:03:26]} 43. Kxg3 {[%emt 0:00:14]} h5 {[%emt 0:00:00]} 44. Qc8 {[%emt 0:00:26]} Kf7 {[%emt 0:00:00]} 45. a5 {[%emt 0:01:01]} Qb4 {[%emt 0:00:00]} 46. Qb7+ {[%emt 0:00:23]} Kf6 {[%emt 0:00:00]} 47. a6 {[%emt 0:00:23]} Qd2 {[%emt 0:00:11]} 48. a7 {[%emt 0:00:34]} Qd3+ {[%emt 0:00:52]} 49. Kg2 {[%emt 0:00:10]} Qe4+ {[%emt 0:00:07]} 50. Kg1 {[%emt 0:00:23]} Qe1+ {[%emt 0:00:11]} 51. Kg2 {[%emt 0:03:23]} 1/2-1/2

[Event "XVI Memorial Lezcano Montalvo 2024"]
[Site "Gran Canaria"]
[Date "2024.03.25"]
[Round "3.25"]
[White "Bergero, Simone"]
[Black "Grube, Kurt"]
[Result "1-0"]
[ECO "A45"]
[WhiteElo "2022"]
[BlackElo "1773"]
[Annotator "RC"]
[PlyCount "47"]
[EventDate "2024.03.23"]
[EventType "swiss"]
[EventCountry "ESP"]
[SourceTitle "playchess.com"]
[Source "ChessBase"]
[SourceQuality "1"]
[TimeControl "5400+30"]

1. d4 {[%emt 0:00:03]} Nf6 {[%emt 0:00:05]} 2. Bg5 {[%emt 0:00:03]} e6 {[%emt 0:00:06]} 3. e4 {[%emt 0:00:05]} Be7 {[%emt 0:00:17]} 4. Bd3 {[%emt 0:00:06]} d6 {[%emt 0:02:02]} 5. Nc3 {[%emt 0:03:13]} Nbd7 {[%emt 0:02:53]} 6. Nf3 {[%emt 0:03:57]} h6 {[%emt 0:01:58]} 7. Bf4 {[%emt 0:00:53]} c6 {[%emt 0:06:24]} 8. a4 {[%emt 0:06:36]} a5 {[%emt 0:04:24]} 9. Qd2 {[%emt 0:01:53]} g5 {[%emt 0:05:01]} 10. Bg3 {[%emt 0:07:10]} g4 {[%emt 0:06:22]} 11. Ng1 {[%emt 0:00:17]} Nh5 {[%emt 0:00:25]} 12. f4 {[%emt 0:04:08]} Nxg3 {[%emt 0:02:55]} 13. hxg3 {[%emt 0:01:13]} e5 {[%emt 0:02:48]} 14. Nge2 {[%emt 0:02:50]} Bf6 {[%emt 0:08:19]} 15. dxe5 {[%emt 0:02:12]} dxe5 {[%emt 0:00:21]} 16. O-O-O {[%emt 0:00:23]} Qe7 {[%emt 0:04:00]} 17. Kb1 {[%emt 0:06:53]} Nc5 {[%emt 0:11:10]} 18. fxe5 {[%emt 0:14:01]} Bg5 {[%emt 0:02:24]} 19. Nf4 {[%emt 0:00:59]} Qxe5 {[%emt 0:02:04]} 20. Qf2 {[%emt 0:00:33]} Ne6 {[%emt 0:15:42]} 21. Nfd5 {[%emt 0:05:31]} cxd5 {[%emt 0:03:47]} 22. exd5 {[%emt 0:00:07]} Qd4 {[%emt 0:00:22]} 23. Bb5+ {[%emt 0:00:05]} Kf8 {[%emt 0:02:23]} 24. Rxd4 {[%emt 0:39:19]} 1-0